Cogmind - Beta 17.1 @@@ ROGUE MODE // 2026.09.09 @ 20:02:29 // Winter2019/RPGLIKE Player: obl-vn Result: Destroyed by L-41 Fighter with Axe Performance ------------- Evolutions (4) 2000 Regions Visited (12) 2400 Robots Destroyed (366) 1830 Value Destroyed (15189) 15189 Prototype IDs (38) 760 Alien Tech Used (0) 0 Bonus (9542) 9542 TOTAL SCORE: 31721 Bonus ------- Triggered High Security 500 High Alert Combat Kills 8041 Follower Combat Kills 163 Entered Garrisons 400 Used RIF Installer 1000 Aligned with FarCom 300 Friendly Fire -862 Cogmind --------- Core Integrity 0/800 Matter 280/300 Energy 156/160 System Corruption 1% Temperature Cool (21) Movement Rolling (90) Location -6/Factory Parts ------- > --- POWER (1) -------- Light Fission Core > --- PROPULSION (5) --- Compact Wheel Compact Wheel Compact Wheel Compact Wheel Compact Wheel > --- UTILITY (10) ----- Experimental Core Analyzer Improved Armor Integrity Analyzer Hardlight Generator Relay Coupler [NC] (64) > --- WEAPON (1) ------- Longsword +1 > --- INVENTORY (3) ---- 8R-AWN's Armor/EX Peak State ------------ > --- POWER ------------ Light Deuterium Engine > --- PROPULSION ------- Wheel Wheel Improved Flight Unit Improved Flight Unit Improved Flight Unit > --- UTILITY ---------- Experimental Core Analyzer Improved Armor Integrity Analyzer 8R-AWN's Armor/TH 8R-AWN's Armor/EX Hardlight Generator > --- WEAPON ----------- Longsword +1 > --- INVENTORY -------- (None) [Rating: 102] Favorites ----------- Power Light Angular Momentum Engine Engine Light Angular Momentum Engine Power Core Light Fission Core Propulsion Compact Wheel Wheel Compact Wheel Hover Unit Cooled Airjet Flight Unit Improved Flight Unit Utility Experimental Core Analyzer Device Hardlight Generator Processor Experimental Core Analyzer Hackware Hacking Suite Protection 8R-AWN's Armor/TH Weapon Longsword +1 Energy Gun Medium Laser Energy Cannon Beam Cannon Launcher Missile Launcher Impact Weapon Heavy Hammer Slashing Weapon Longsword +1 Build | -11 -10 -10 -9 -9 -9 -8 -8 -8 -8 -8 -7 -6 ------- Run | Yrd Mat Min Mat Min Exi Min Mat Gar Mat Gar Fac Fac Slots Evolved 13 | . 5 1 4 . . . 2 . . 1 . . Power . | . . . . . . . . . . . . . Propulsion 4 | . 2 1 1 . . . . . . . . . Utility 9 | . 3 . 3 . . . 2 . . 1 . . Weapon . | . . . . . . . . . . . . . Parts Attached 49 | 3 10 3 9 . 5 1 15 . 1 2 . . Power 7 | 1 . 2 1 . . . 2 . . 1 . . Engine 6 | 1 . 2 1 . . . 2 . . . . . Core 1 | . . . . . . . . . . 1 . . Reactor . | . . . . . . . . . . . . . Propulsion 17 | 1 3 1 2 . . . 10 . . . . . Treads . | . . . . . . . . . . . . . Leg . | . . . . . . . . . . . . . Wheel 9 | 1 . . . . . . 8 . . . . . Hover 1 | . . . . . . . 1 . . . . . Flight 7 | . 3 1 2 . . . 1 . . . . . Utility 18 | . 5 . 5 . 4 1 1 . 1 1 . . Device 5 | . 1 . 1 . 1 . 1 . 1 . . . Storage . | . . . . . . . . . . . . . Processor 4 | . 2 . . . 2 . . . . . . . Hackware 7 | . 2 . 4 . . . . . . 1 . . Protection 2 | . . . . . 1 1 . . . . . . Artifact . | . . . . . . . . . . . . . Weapon 7 | 1 2 . 1 . 1 . 2 . . . . . Energy Gun 1 | 1 . . . . . . . . . . . . Energy Cannon 1 | . 1 . . . . . . . . . . . Ballistic Gun . | . . . . . . . . . . . . . Ballistic Cannon . | . . . . . . . . . . . . . Launcher 3 | . . . 1 . . . 2 . . . . . Special Weapon . | . . . . . . . . . . . . . Impact Weapon 1 | . 1 . . . . . . . . . . . Slashing Weapon 1 | . . . . . 1 . . . . . . . Piercing Weapon . | . . . . . . . . . . . . . Special Melee Weapon . | . . . . . . . . . . . . . Unidentified Prototypes 5 | . 1 . . . 2 1 1 . . . . . Parts Lost 1 | . . . . . . . 1 . . . . . Power . | . . . . . . . . . . . . . Propulsion 1 | . . . . . . . 1 . . . . . Utility . | . . . . . . . . . . . . . Weapon . | . . . . . . . . . . . . . Highest Loss Streak 1 | . . . . . . . 1 . . . . . To Critical Strikes . | . . . . . . . . . . . . . Average Backups 1 | . . 1 1 1 . 1 1 1 1 1 1 1 Power . | . . . . . . . . . . . . . Propulsion . | . . . . . . . . . . . . . Utility . | . . . . . . 1 . . . . . . Weapon . | . . . 1 1 . . 1 1 . 1 . . Tool/Special . | . . . . . . . . . . . . . Unused Backups 8 | . . . 1 . 1 . 2 1 1 . 1 1 Power . | . . . . . . . . . . . . . Propulsion 1 | . . . . . . . 1 . . . . . Utility 3 | . . . . . . . . 1 1 . 1 . Weapon 3 | . . . 1 . 1 . 1 . . . . . Tool/Special 1 | . . . . . . . . . . . . 1 Average Slot Usage (%) 82 | . 98 100 99 100 96 84 76 75 74 75 75 70 Engine 6 | . 18 10 8 7 7 7 6 6 6 5 . . Wheel 22 | . 16 . . . . . 24 31 31 30 29 29 Flight 9 | . 5 37 40 35 35 35 7 . . . . . Device 6 | . 8 10 6 7 8 14 7 6 5 5 5 5 Processor 10 | . 12 10 5 . 6 14 12 12 12 11 11 11 Hackware 7 | . 16 20 28 42 29 . . . . 1 5 5 Protection 8 | . . . . . 1 6 10 12 12 11 10 5 Energy Cannon 1 | . 15 . . . . . . . . . . . Impact Weapon 1 | . 1 10 8 1 . . . . . . . . Slashing Weapon 3 | . . . . . 5 7 5 5 5 5 4 5 Peak Build Rating 102 | 3 20 25 39 39 85 85 102 98 99 99 99 99 Average Rating 76 | 1 9 22 30 39 56 83 94 97 97 98 96 75 On Entrance 57 | . 3 20 25 39 39 85 85 94 98 94 99 72 Avg Prop Armor Cover (%) 1 | . . . . . . . 1 . . . . . Naked Turns . | . . . . . . . . . . . . . Heaviest Build 62 | 7 9 9 10 10 29 29 62 62 62 62 60 57 Greatest Support 85 | 10 15 20 24 24 29 29 85 85 85 85 85 85 Greatest Overweight (x) 2 | 2 . . . . . . 2 . . . . . Average Overweight (x) . | . . . . . . . . . . . . . Largest Inventory Capacity 3 | . 1 1 1 1 3 3 3 3 3 3 3 3 Average Capacity 2 | . . 1 1 1 1 3 3 3 3 3 3 3 Most Carried 3 | . 1 1 1 1 3 3 3 3 3 3 3 3 Average Carried 2 | . . . 1 1 1 2 2 2 2 2 2 2 Final Capacity 3 | . 1 1 1 1 3 3 3 3 3 3 3 3 Final Carried 3 | . 1 1 1 1 3 3 2 3 3 1 3 3 Class Distribution -------------------- 68% | Scavenger-Mutant 9% | Hacker-Sprinter 7% | Mutant 6% | Wizard-Sprinter 5% | Scavenger-Sprinter 3% | Hacker-Mutant Dominant Class ---------------- Mutant | -10/Materials Hacker-Sprinter | -10/Mines Hacker-Sprinter | -9/Materials Wizard-Sprinter | -9/Mines Wizard-Sprinter | -9/Exiles Scavenger-Sprinter | -8/Mines Scavenger-Mutant | -8/Materials Scavenger-Mutant | -8/Garrison Scavenger-Mutant | -8/Materials Scavenger-Mutant | -8/Garrison Scavenger-Mutant | -7/Factory Scavenger-Mutant | -6/Factory Resources | -11 -10 -10 -9 -9 -9 -8 -8 -8 -8 -8 -7 -6 ----------- Run | Yrd Mat Min Mat Min Exi Min Mat Gar Mat Gar Fac Fac Matter Collected 3188 | 230 132 40 170 10 50 . 767 533 413 296 547 . Remotely . | . . . . . . . . . . . . . Salvage Created 10979 | . 590 188 1048 . 166 138 2338 1305 2828 801 1409 168 Parts 671 | . 30 7 49 . 18 21 164 64 153 52 103 10 Haulers Intercepted 16 | . 2 . 4 . . . 4 . 6 . . . Recyclers Shooed 2 | . . . . . . . 1 . . . . 1 Parts Field Recycled . | . . . . . . . . . . . . . Retrieved Matter . | . . . . . . . . . . . . . Parts Self-Destructed . | . . . . . . . . . . . . . Prevented . | . . . . . . . . . . . . . Parts Restored . | . . . . . . . . . . . . . Kills | -11 -10 -10 -9 -9 -9 -8 -8 -8 -8 -8 -7 -6 ------- Run | Yrd Mat Min Mat Min Exi Min Mat Gar Mat Gar Fac Fac Combat Hostiles Destroyed 283 | . 13 14 26 . 1 6 50 39 54 27 51 2 Melee 152 | . . 10 8 . 1 6 30 19 29 21 26 2 Cannons 12 | . 12 . . . . . . . . . . . AOE 102 | . . 1 5 . . . 20 20 25 6 25 . Classes Destroyed 20 | . 6 2 2 . . 2 7 1 . . . . Worker 19 | . . . . . . . 9 . 10 . . . Builder 16 | . . . . . . 1 11 . 4 . . . Tunneler 2 | . . . . . . . 1 . 1 . . . Hauler 16 | . 2 . 4 . . . 4 . 6 . . . Recycler 14 | . 1 . 3 . . 1 6 . 3 . . . Mechanic 5 | . . . 1 . . . . . 2 . 2 . Operator 6 | . 3 . 1 . . . 1 . 1 . . . Watcher 11 | . 2 . 3 . . . 3 . 3 . . . Swarmer 50 | . 6 3 10 . . 5 9 7 5 4 1 . Grunt 118 | . 7 3 7 . . . 22 16 29 13 21 . Brawler 19 | . . . . . . . 3 4 5 1 6 . Duelist 5 | . . . . . . . 1 . 2 1 1 . Protector 6 | . . . . . . . 1 . 3 . 2 . Sentry 43 | . . . 9 . . . 9 7 9 3 6 . Specialist 2 | . . . . . . . 2 . . . . . Hunter 18 | . . . . . . 1 2 2 . 3 8 2 Programmer 10 | . . . . . . . . 3 . 1 6 . Heavy 2 | . . . . . . . 1 . 1 . . . Zionite 1 | . . 1 . . . . . . . . . . Assembled 8 | . . 8 . . . . . . . . . . Savage 1 | . . . . . . . . . . 1 . . Best Kill Streak 14 | . 4 4 5 . 1 3 12 10 10 5 14 2 Combat Bots Only 13 | . 3 4 4 . 1 3 8 10 9 5 13 2 Max Kills in Single Turn 6 | . 1 2 3 . 1 1 4 4 3 2 6 1 Gunslinging . | . . . . . . . . . . . . . Exploded 6 | . . 1 2 . . . 2 4 3 2 6 . Melee 1 | . . 1 1 . 1 1 1 1 1 1 1 1 Uniques/NPCs Destroyed 2 | . . . . . 2 . . . . . . . EX-DEC (-9/Exiles) 8R-AWN (-9/Exiles) Combat | -11 -10 -10 -9 -9 -9 -8 -8 -8 -8 -8 -7 -6 -------- Run | Yrd Mat Min Mat Min Exi Min Mat Gar Mat Gar Fac Fac Hostile Shots Fired 1446 | . 46 36 154 . 8 22 138 117 182 203 487 53 Missed 472 | . 11 14 58 . 4 10 41 44 54 59 163 14 Hits 974 | . 35 22 96 . 4 12 97 73 128 144 324 39 Melee 17 | . . 5 . . . . . . . 1 10 1 Projectile 957 | . 35 17 96 . 4 12 97 73 128 143 314 38 Critical Strikes 40 | . . 1 1 . 3 . 3 3 6 5 15 3 Damage Taken 6709 | . 344 412 1270 . 52 77 511 274 625 744 1848 552 Core 4123 | . 308 369 1109 . 50 42 257 127 288 362 868 343 Absorbed by Shields 1665 | . . . . . 19 33 164 140 221 309 639 140 Redirected to Core 2774 | . 105 153 543 . 7 29 191 104 276 340 826 200 Ignored by Resistances 7343 | . . . . . . 50 974 800 1914 931 2674 . Core Remaining (%) 75 | 100 . 94 . . . 52 . . . 100 33 . Volleys Fired 204 | . 66 . 4 . . . 39 31 21 13 30 . Largest 1 | . 1 . 1 . . . 1 1 1 1 1 . Hottest 60 | . 60 . 30 . . . 36 36 36 36 36 . Shots Fired 204 | . 66 . 4 . . . 39 31 21 13 30 . Gun 2 | . 2 . . . . . . . . . . . Cannon 64 | . 64 . . . . . . . . . . . Launcher 138 | . . . 4 . . . 39 31 21 13 30 . Special . | . . . . . . . . . . . . . Kinetic . | . . . . . . . . . . . . . Thermal 66 | . 66 . . . . . . . . . . . Explosive 138 | . . . 4 . . . 39 31 21 13 30 . Electromagnetic . | . . . . . . . . . . . . . Robot Hit Streak 24 | . 10 . . . . . 9 24 10 8 18 . Robot Miss Streak 6 | . 6 . . . . . 2 . 2 1 1 . Penetration Max . | . . . . . . . . . . . . . Secondary Targets . | . . . . . . . . . . . . . Shots Hit Robots 616 | . 44 20 73 . 8 9 106 57 131 78 83 7 Core Hits 469 | . 17 12 19 . 5 7 110 55 113 34 95 2 Critical Kills 3 | . 1 . 2 . . . . . . . . . Critical Parts Destroyed 19 | . 2 2 15 . . . . . . . . . Critical Strikes 61 | . 3 2 17 . 2 . 9 5 5 10 7 1 Meltdown 1 | . 1 . . . . . . . . . . . Smash 21 | . 2 2 17 . . . . . . . . . Sever 39 | . . . . . 2 . 9 5 5 10 7 1 Melee Attacks 767 | . 10 40 110 . 9 19 149 80 164 99 79 8 Impact 160 | . 10 40 110 . . . . . . . . . Slashing 607 | . . . . . 9 19 149 80 164 99 79 8 Piercing . | . . . . . . . . . . . . . Sneak Attacks 57 | . 2 . 7 . 1 2 14 2 23 2 3 1 Combat Hostiles 6 | . . . 2 . . . . . 1 1 2 . Follow-up Attacks . | . . . . . . . . . . . . . Damage Inflicted 39693 | . 1020 1117 3018 . 416 537 8148 3865 9873 4406 6907 386 Guns . | . . . . . . . . . . . . . Cannons 704 | . 704 . . . . . . . . . . . Explosions 14643 | . . 114 372 . . . 3680 1916 3617 882 4062 . Melee 24346 | . 316 1003 2646 . 416 537 4468 1949 6256 3524 2845 386 Ramming . | . . . . . . . . . . . . . Kinetic . | . . . . . . . . . . . . . Thermal 976 | . 704 114 . . . . . . 158 . . . Explosive 14371 | . . . 372 . . . 3680 1916 3459 882 4062 . Electromagnetic . | . . . . . . . . . . . . . Impact 3965 | . 316 1003 2646 . . . . . . . . . Slashing 20381 | . . . . . 416 537 4468 1949 6256 3524 2845 386 Piercing . | . . . . . . . . . . . . . Highest Corruption 4 | . 1 1 . . . . . . . 2 4 1 Average Corruption 1 | . 1 1 . . . . . . . 1 2 1 Corruption Purged . | . . . . . . . . . . . . . Corruption Blocked . | . . . . . . . . . . . . . Effects 24 | . 8 1 . . . . . . . 8 6 1 Message Errors 2 | . 1 . . . . . . . . 1 . . Matter Fused 10 | . 3 . . . . . . . . 4 3 . Heat Flow Errors 1 | . 1 . . . . . . . . . . . Energy Discharges 4 | . 2 . . . . . . . . 1 1 . Parts Rejected 2 | . . . . . . . . . . . 1 1 Data Loss (minor) 4 | . 1 . . . . . . . . 2 1 . Data Loss (major) 1 | . . 1 . . . . . . . . . . Overload Shots . | . . . . . . . . . . . . . Overflow Damage 2702 | . 232 153 839 . 89 55 354 63 513 207 118 79 Projectiles . | . . . . . . . . . . . . . Explosions 258 | . . . . . . . 84 15 114 . 45 . Melee 2444 | . 232 153 839 . 89 55 270 48 399 207 73 79 Knockbacks 10 | . . 3 7 . . . . . . . . . Impact 9 | . . 3 6 . . . . . . . . . Kinetic . | . . . . . . . . . . . . . Secondary 1 | . . . 1 . . . . . . . . . Self-Inflicted Damage 188 | . . 45 54 . . 5 7 15 43 . 19 . Shots 18 | . . 1 2 . . 1 3 1 7 . 3 . Rammed . | . . . . . . . . . . . . . Targets Rammed . | . . . . . . . . . . . . . Kicked . | . . . . . . . . . . . . . Crushed . | . . . . . . . . . . . . . Highest Temperature 264 | . 264 5 9 . . . . . . . 6 . Average Temperature 30 | . 39 1 2 . . . . . . . 2 . Received Heat Transfer 972 | . 129 15 468 . . . 40 . . . 243 77 Siege Activations . | . . . . . . . . . . . . . Martial Activations . | . . . . . . . . . . . . . Shielding Activations . | . . . . . . . . . . . . . Robots Disrupted . | . . . . . . . . . . . . . Combat Hostiles . | . . . . . . . . . . . . . Robots Corrupted 24 | . 3 3 18 . . . . . . . . . Combat Hostiles 16 | . . 3 13 . . . . . . . . . Parts Fried 30 | . 4 3 23 . . . . . . . . . Impact Corruptions 51 | . 9 7 35 . . . . . . . . . Robots Melted 1 | . 1 . . . . . . . . . . . Combat Hostiles 1 | . 1 . . . . . . . . . . . Parts Melted 6 | . 4 . 1 . . . . . 1 . . . Heat Transferred 1730 | . 1480 150 . . . . . . 100 . . . Parts Sabotaged . | . . . . . . . . . . . . . Parts Stolen . | . . . . . . . . . . . . . Parts Stripped . | . . . . . . . . . . . . . Power Chain Reactions . | . . . . . . . . . . . . . Alert | -11 -10 -10 -9 -9 -9 -8 -8 -8 -8 -8 -7 -6 ------- Run | Yrd Mat Min Mat Min Exi Min Mat Gar Mat Gar Fac Fac Maximum Alert Level 5 | . 1 . 3 1 . . 4 5 5 5 5 4 Low Security (%) 17 | 100 95 100 20 17 . 100 2 . . . . . Level 1 6 | . 4 . 33 82 . . 4 . . . . . Level 2 13 | . . . 33 . . . 49 . . . . . Level 3 10 | . . . 13 . . . 40 12 . . . . Level 4 13 | . . . . . . . 3 27 40 . 6 100 Level 5 32 | . . . . . . . . 60 59 100 27 . High Security 6 | . . . . . . . . . . . 65 . Max Security . | . . . . . . . . . . . . . Sterilizations 2 | . . . . . . . 1 . 1 . . . Peak Influence 3029 | . 222 131 727 265 . 198 1308 2466 2524 3029 2915 1428 Initial 1635 | . . 21 40 265 . . 76 848 1201 1635 1589 1428 Average 1238 | . 131 82 414 223 . 103 690 1776 1789 2464 1944 1308 Influence Increases 11272 | . 574 311 1086 15 . 268 2166 1618 2243 1434 1506 51 Destroy 0b10 Robot/C 5460 | . 260 120 520 . . 120 980 780 1020 640 980 40 Destroy 0b10 Robot/NC 475 | . 40 . 55 . . 10 180 . 165 5 20 . Destroy Leader 994 | . 68 20 154 . . 30 264 30 248 50 120 10 Allied During Kill 60 | . . 6 . . . . . . . 54 . . Successful Hack 81 | . 9 . 23 . . . 32 . 7 10 . . Disable Machine 1665 | . 150 150 180 . . 90 435 90 375 30 165 . Anti-Garrison Action 850 | . . . . . . . . 450 . 400 . . Destroy Structure 787 | . 2 15 34 . . 3 155 208 173 95 101 1 Partial Spotted 150 | . 15 . 45 15 . . 45 15 . . 15 . Lose Combat Pursuer 750 | . 30 . 75 . . 15 75 45 255 150 105 . Influence Decreases 10013 | . 520 259 512 515 180 70 1058 458 2193 921 1620 1707 Entered New Map 6347 | . . 33 66 415 180 . 122 458 1265 881 1440 1487 Time Decay 2696 | . 370 206 446 100 . 70 626 . 628 . 180 70 Lost Part 10 | . . . . . . . 10 . . . . . Lost Ally 60 | . . 20 . . . . . . . 40 . . Purge Threat 900 | . 150 . . . . . 300 . 300 . . 150 Squads Dispatched 47 | . 3 . . . . . 10 . 8 . 25 1 Investigation 4 | . 1 . . . . . 1 . . . 1 1 Extermination 1 | . . . . . . . . . . . 1 . Reinforcement 11 | . 2 . . . . . 5 . 3 . 1 . Assault 29 | . . . . . . . 2 . 5 . 22 . Garrison 2 | . . . . . . . 2 . . . . . Intercept . | . . . . . . . . . . . . . Searches Triggered . | . . . . . . . . . . . . . Construction Impeded 2 | . . . . . . . 2 . . . . . Haulers Reinforced . | . . . . . . . . . . . . . Active Scanning Responses . | . . . . . . . . . . . . . Cargo Convoy Interrupts . | . . . . . . . . . . . . . Stealth | -11 -10 -10 -9 -9 -9 -8 -8 -8 -8 -8 -7 -6 --------- Run | Yrd Mat Min Mat Min Exi Min Mat Gar Mat Gar Fac Fac Distress Signals 17 | . 6 . 2 . . . 5 . 3 . 1 . Communications Jammed . | . . . . . . . . . . . . . Distress Signals . | . . . . . . . . . . . . . Times Spotted 439 | . 29 26 36 2 3 7 76 37 91 43 83 6 Peak Tracking Total 11 | . 4 7 5 2 3 3 7 5 8 6 11 6 Tactical Retreats 49 | . 2 6 4 . 1 1 5 3 15 9 3 . Traps | -11 -10 -10 -9 -9 -9 -8 -8 -8 -8 -8 -7 -6 ------- Run | Yrd Mat Min Mat Min Exi Min Mat Gar Mat Gar Fac Fac Traps Triggered 13 | . 2 . . . . . . 5 . 5 1 . Indirectly . | . . . . . . . . . . . . . Trap Hack Attempts . | . . . . . . . . . . . . . Triggered . | . . . . . . . . . . . . . Disarmed . | . . . . . . . . . . . . . Reprogrammed . | . . . . . . . . . . . . . Reused . | . . . . . . . . . . . . . Traps Extracted . | . . . . . . . . . . . . . Installed . | . . . . . . . . . . . . . Triggered . | . . . . . . . . . . . . . Machines | -11 -10 -10 -9 -9 -9 -8 -8 -8 -8 -8 -7 -6 ---------- Run | Yrd Mat Min Mat Min Exi Min Mat Gar Mat Gar Fac Fac Machines Disabled 124 | . 10 10 12 . . 6 29 14 25 7 11 . Max in Single Turn 4 | . 1 1 1 . . 1 1 1 3 1 4 . Garrison Access 2 | . . . . . . . . . . . 2 . Garrison Relay 11 | . . . . . . . . 6 . 5 . . Phase Generator 1 | . . . . . . . . 1 . . . . Machines Repaired . | . . . . . . . . . . . . . Machines Dismantled . | . . . . . . . . . . . . . Machines Sabotaged . | . . . . . . . . . . . . . Overloaded Fab Kills . | . . . . . . . . . . . . . Hacking | -11 -10 -10 -9 -9 -9 -8 -8 -8 -8 -8 -7 -6 --------- Run | Yrd Mat Min Mat Min Exi Min Mat Gar Mat Gar Fac Fac Machines Accessed 56 | . 6 . 13 . 1 . 13 4 9 3 5 2 Terminals 45 | . 6 . 12 . . . 9 4 7 3 2 2 Fabricators 1 | . . . . . . . . . . . 1 . Repair Stations . | . . . . . . . . . . . . . Recycling Units 3 | . . . . . . . 2 . 1 . . . Scanalyzers 2 | . . . 1 . . . 1 . . . . . Garrison Access 4 | . . . . . . . 1 . 1 . 2 . Total Hacks 116 | . 16 . 25 . 1 . 26 8 21 7 8 4 Successful 71 | . 9 . 22 . 1 . 15 2 15 2 4 1 Failed 45 | . 7 . 3 . . . 11 6 6 5 4 3 Catastrophic 8 | . . . . . . . 1 3 1 2 1 . Database Lockouts . | . . . . . . . . . . . . . Manual 62 | . 14 . 16 . 1 . 14 . 10 3 2 2 Terminals 99 | . 16 . 24 . . . 18 8 17 7 5 4 Fabricators 1 | . . . . . . . . . . . 1 . Repair Stations . | . . . . . . . . . . . . . Recycling Units 7 | . . . . . . . 4 . 3 . . . Scanalyzers 4 | . . . 1 . . . 3 . . . . . Garrison Access 4 | . . . . . . . 1 . 1 . 2 . Terminal Hacks 25 | . 2 . 8 . 1 . 4 2 5 2 . 1 Robot Analysis 2 | . . . 1 . . . . . 1 . . . Prototype ID Bank 6 | . . . 4 . . . 1 . 1 . . . Open Door 1 | . . . . . . . . . . 1 . . Emergency Access Points 1 | . . . . . . . . 1 . . . . Unreport Threat 6 | . 1 . . . . . 2 . 2 . . 1 Locate Traps 5 | . 1 . 2 . . . 1 . 1 . . . Hauler Manifests 1 | . . . 1 . . . . . . . . . Garrison Registry 2 | . . . . . . . . 1 . 1 . . Proto ID Catalog 1 | . . . . . 1 . . . . . . . Fabricator Hacks . | . . . . . . . . . . . . . Repair Station Hacks . | . . . . . . . . . . . . . Recycling Unit Hacks 2 | . . . . . . . 1 . 1 . . . Retrieve Components 2 | . . . . . . . 1 . 1 . . . Scanalyzer 4 | . . . 1 . . . 3 . . . . . Retrieve Study 4 | . . . 1 . . . 3 . . . . . Garrison Access Hacks 4 | . . . . . . . 1 . 1 . 2 . Unlock Access 2 | . . . . . . . 1 . 1 . . . Seal Access 2 | . . . . . . . . . . . 2 . Unauthorized Hacks 36 | . 7 . 13 . . . 6 . 8 . 2 . Terminals 35 | . 7 . 13 . . . 6 . 8 . 1 . Assimilate 1 | . . . 1 . . . . . . . . . Botnet 6 | . 2 . 2 . . . 1 . 1 . . . Skim 28 | . 5 . 10 . . . 5 . 7 . 1 . Fabricators 1 | . . . . . . . . . . . 1 . Liberate 1 | . . . . . . . . . . . 1 . Repair Stations . | . . . . . . . . . . . . . Recycling Units . | . . . . . . . . . . . . . Scanalyzers . | . . . . . . . . . . . . . Garrison Access . | . . . . . . . . . . . . . Data Cores Recovered . | . . . . . . . . . . . . . Used . | . . . . . . . . . . . . . Hacking Detections 32 | . 5 . 6 . . . 6 4 3 3 3 2 Full Trace Events 6 | . . . . . . . 1 2 . 1 1 1 Feedback Events 1 | . . . . . . . . . . . . 1 Corruption 1 | . . . . . . . . . . . . 1 Feedback Blocked . | . . . . . . . . . . . . . Robot Schematics Acquired . | . . . . . . . . . . . . . Robots Built . | . . . . . . . . . . . . . Authchips . | . . . . . . . . . . . . . Time . | . . . . . . . . . . . . . Total Robot Build Rating . | . . . . . . . . . . . . . Part Schematics Acquired . | . . . . . . . . . . . . . Parts Built . | . . . . . . . . . . . . . Authchips . | . . . . . . . . . . . . . Time . | . . . . . . . . . . . . . Total Part Build Rating . | . . . . . . . . . . . . . Part Studies Acquired 4 | . . . 1 . . . 3 . . . . . Parts Repaired . | . . . . . . . . . . . . . Time . | . . . . . . . . . . . . . Parts Recycled . | . . . . . . . . . . . . . Recycled Matter . | . . . . . . . . . . . . . Retrieved Matter . | . . . . . . . . . . . . . Retrieved Components 20 | . . . . . . . 10 . 10 . . . Parts Scanalyzed . | . . . . . . . . . . . . . Part Schematics Acquired . | . . . . . . . . . . . . . Parts Damaged . | . . . . . . . . . . . . . Bothacking | -11 -10 -10 -9 -9 -9 -8 -8 -8 -8 -8 -7 -6 ------------ Run | Yrd Mat Min Mat Min Exi Min Mat Gar Mat Gar Fac Fac Used RIF Installer 2 | . . . . . . . . 1 . 1 . . Watcher Feeds 1 | . . . . . . . . . . 1 . . Robots Hacked . | . . . . . . . . . . . . . Non-combat . | . . . . . . . . . . . . . Combat . | . . . . . . . . . . . . . Robot Hacks Applied . | . . . . . . . . . . . . . Relay Couplers Released 18 | . . . . . . . . 9 . 9 . . Machine Destruction 18 | . . . . . . . . 9 . 9 . . Attached 1 | . . . . . . . . . . 1 . . Fabnet Peak Effective % . | . . . . . . . . . . . . . Robots Rewired 3 | . . . . . . . . . . 3 . . Allies Hacked . | . . . . . . . . . . . . . Hacks Repelled . | . . . . . . . . . . . . . Allies | -11 -10 -10 -9 -9 -9 -8 -8 -8 -8 -8 -7 -6 -------- Run | Yrd Mat Min Mat Min Exi Min Mat Gar Mat Gar Fac Fac Total Allies 9 | . . 2 1 3 . . . . . 3 . . Largest Group 3 | . . 2 1 3 3 . . . . 3 . . Highest-Rated Group 71 | . . 50 10 40 40 . . . . 71 . . Highest-Rated Ally 31 | . . 31 10 16 16 . . . . 31 . . Total Orders . | . . . . . . . . . . . . . Ally Attacks 48 | . . 4 . . 8 . . . . 36 . . Total Damage 737 | . . 83 . . 15 . . . . 639 . . Kills 8 | . . 3 . . . . . . . 5 . . Allies Corrupted . | . . . . . . . . . . . . . Allies Melted . | . . . . . . . . . . . . . Turrets Deployed 1 | . . . . . 1 . . . . . . . Intel | -11 -10 -10 -9 -9 -9 -8 -8 -8 -8 -8 -7 -6 ------- Run | Yrd Mat Min Mat Min Exi Min Mat Gar Mat Gar Fac Fac Active Infowar (turns) 1440 | . 423 351 666 . . . . . . . . . Structural 1440 | . 423 351 666 . . . . . . . . . Robot Analysis Total 2 | . . . 1 . . . . . 1 . . . Derelict Logs Recovered 2 | . . 1 . 1 . . . . . . . . Drone Launches . | . . . . . . . . . . . . . Drone Recoveries . | . . . . . . . . . . . . . Exploration | -11 -10 -10 -9 -9 -9 -8 -8 -8 -8 -8 -7 -6 ------------- Run | Yrd Mat Min Mat Min Exi Min Mat Gar Mat Gar Fac Fac Turns Passed 11150 | 43 995 433 1114 218 227 193 2149 1033 2166 1382 1049 148 Spaces Moved 10320 | 54 914 668 1261 448 399 424 1930 825 1438 1165 653 141 Core 28 | 28 . . . . . . . . . . . . Treads . | . . . . . . . . . . . . . Legs . | . . . . . . . . . . . . . Wheels 6172 | 26 638 . . . . . 1286 825 1438 1165 653 141 Hover . | . . . . . . . . . . . . . Flight 4120 | . 276 668 1261 448 399 424 644 . . . . . Fastest Speed 27 | 50 34 31 27 27 27 27 27 90 90 90 90 90 Average Speed 65 | 71 66 31 28 27 27 27 74 90 90 90 90 90 Slowest Speed 150 | 150 80 34 31 27 27 27 110 90 90 90 90 90 Overloaded Moves . | . . . . . . . . . . . . . Propulsion Burnouts . | . . . . . . . . . . . . . Robots Hopped 6 | . . 2 1 3 . . . . . . . . Potential Cave-ins . | . . . . . . . . . . . . . Cave-ins Triggered . | . . . . . . . . . . . . . Exploration Rate (%) 71 | 3 97 97 94 88 60 95 96 93 88 94 20 6 Regions Visited 12 Branch Regions 4 Pre-discovered Areas 8 | . 1 . 3 1 . . 1 . 2 . . . Known Exits Taken 8 | . 1 1 1 . 1 1 1 . 1 . 1 . Unknown Exits Taken 2 | 1 . . . 1 . . . . . . . . Scrap Searched 5 | . . 1 . 2 . 2 . . . . . . Spaces Dug 65 | . 1 3 7 . . . 14 8 13 8 10 1 Terrain Destroyed 828 | . 1 16 46 . . 3 200 151 216 67 127 1 Melee 65 | . 1 3 7 . . . 14 8 13 8 10 1 Projectile . | . . . . . . . . . . . . . AOE 763 | . . 13 39 . . 3 186 143 203 59 117 . Terrain Rammed . | . . . . . . . . . . . . . Walls Destroyed . | . . . . . . . . . . . . . Machines Disabled . | . . . . . . . . . . . . . Actions | -11 -10 -10 -9 -9 -9 -8 -8 -8 -8 -8 -7 -6 --------- Run | Yrd Mat Min Mat Min Exi Min Mat Gar Mat Gar Fac Fac Total 13550 | 56 1217 817 1818 540 511 483 2456 995 2121 1385 996 155 Wait 1740 | . 195 87 390 95 84 24 226 12 430 23 174 . Move 10295 | 53 913 663 1258 441 398 423 1929 824 1437 1163 652 141 Hop 6 | . . 2 1 3 . . . . . . . . Pick Up 39 | . 1 1 1 . 4 2 6 6 9 4 4 1 Fast Attach 53 | 3 11 2 7 . 5 . 16 . 3 2 3 1 Attach 6 | . . 1 . . . 2 2 . . . . 1 Detach 4 | . 1 . . . . . 1 . . . 1 1 Swap 55 | . . 1 6 1 . . 6 13 11 7 10 . Drop 81 | . 5 2 6 . 11 2 23 5 11 7 7 2 Fire 204 | . 66 . 4 . . . 39 31 21 13 30 . Melee 767 | . 10 40 110 . 9 19 149 80 164 99 79 8 Ram . | . . . . . . . . . . . . . Kick . | . . . . . . . . . . . . . Crush . | . . . . . . . . . . . . . Escape Stasis 19 | . . . . . . . . 9 . 10 . . Rewire 22 | . . . . . . . . . . 22 . . Trap . | . . . . . . . . . . . . . Miscellaneous 259 | . 15 18 35 . . 11 59 15 35 35 36 . Route ------- -11/Scrapyard -10/Materials (discovered 6 exits: *Mat x3 / *Min x2 / Sub) -10/Mines (discovered 3 exits: *Mat x2 / *Sub) -9/Materials (discovered 5 exits: *Mat x3 / *Min / *Sto) -9/Mines (discovered 4 exits: *Mat x2 / *Exi / [*Zio]) -9/Exiles (discovered 2 exits: *Min x2) -8/Mines -8/Materials (discovered 4 exits: *Fac x3 / Gar) -8/Garrison (discovered 3 exits: *Mat x3) -8/Materials (discovered 4 exits: *Fac x3 / Gar) -8/Garrison (discovered 3 exits: *Fac x3) -7/Factory (discovered 4 exits: *Fac x2 / *Low x2) -6/Factory History --------- Turn | Location | Event 21 | -11/Scrapyard | Discovered new exit (range 16) 44 | -11/Scrapyard | Entered Materials 89 | -10/Materials | Discovered new exit (range 9) 164 | -10/Materials | Discovered new exit (range 3) 301 | -10/Materials | Build established: Mutant 440 | -10/Materials | Upgraded with Utility slot (x2) 500 | -10/Materials | Discovered new exit (range 10) 507 | -10/Materials | Reached level 2 846 | -10/Materials | Upgraded with Utility slot (x1) 853 | -10/Materials | Upgraded with Propulsion slot (x1) 858 | -10/Materials | Upgraded with Propulsion slot (x1) 871 | -10/Materials | Discovered new exit (range 5) 957 | -10/Materials | Identified exit to Mines 957 | -10/Materials | Identified exit to Materials 979 | -10/Materials | Discovered exit to Mines (range 8) 982 | -10/Materials | Loaded intel: 2 recycling unit locations 999 | -10/Materials | Learned 4 Materials zone layouts 1004 | -10/Materials | Learned Storage terminal intel 1005 | -10/Materials | Learned Storage security intel 1007 | -10/Materials | Identified exit to Subcaves 1008 | -10/Materials | Learned location of 3 exits from Materials 1021 | -10/Materials | Learned location of 3 exits from Materials 1039 | -10/Materials | Entered Mines 1044 | -10/Mines | Reached level 3 1070 | -10/Mines | Assembled infested the area 1075 | -10/Mines | Assisted by a Guerilla fighting off Assembled 1131 | -10/Mines | Build established: Hacker-Mutant 1173 | -10/Mines | Upgraded with Propulsion slot (x1) 1185 | -10/Mines | Found a hidden stash of uninstalled traps 1197 | -10/Mines | Learned Materials stockpile data 1221 | -10/Mines | Discovered exit to Subcaves (range 7) 1252 | -10/Mines | Received a Rocket Launcher from a helpful Derelict 1434 | -10/Mines | Discovered exit to Materials (range 5) 1460 | -10/Mines | Discovered exit to Materials (range 13) 1472 | -10/Mines | Entered Materials 1473 | -9/Materials | Identified exit to Mines 1474 | -9/Materials | Identified exit to Materials 1474 | -9/Materials | Identified exit to Storage 1474 | -9/Materials | Reached level 4 1477 | -9/Materials | Build established: Hacker-Sprinter 1548 | -9/Materials | Reached level 5 1660 | -9/Materials | Core integrity fell below 50% 1696 | -9/Materials | Core integrity fell below 20% 1759 | -9/Materials | Reached level 6 1779 | -9/Materials | Learned Storage stockpile data 1798 | -9/Materials | Upgraded with Propulsion slot (x1) 1872 | -9/Materials | Learned 2 Materials zone layouts 1903 | -9/Materials | Learned location of 2 exits from Materials 1953 | -9/Materials | Loaded intel: 2 repair station locations 2158 | -9/Materials | Upgraded with Utility slot (x2) 2199 | -9/Materials | Reached level 7 2428 | -9/Materials | Upgraded with Utility slot (x1) 2441 | -9/Materials | Learned location of Zion (-7) 2449 | -9/Materials | Build established: Wizard-Sprinter 2504 | -9/Materials | Learned 2 Storage zone layouts 2519 | -9/Materials | Learned Storage trap positions 2536 | -9/Materials | Learned Storage garrison access intel 2560 | -9/Materials | Learned 4 Materials zone layouts 2586 | -9/Materials | Entered Mines 2588 | -9/Mines | Reached level 8 2591 | -9/Mines | Found a Scrap Suit stashed away for nefarious purposes 2666 | -9/Mines | Met a Derelict bent on vengeance 2697 | -9/Mines | Deemed a non-threat by the Exiles lab entrance 2712 | -9/Mines | A Derelict revealed a hidden shortcut to a safe place 2737 | -9/Mines | Assisted by bots powering up and referring to "LRC-V3" 2752 | -9/Mines | Discovered new exit (range 5) 2804 | -9/Mines | Entered Exiles 2804 | -9/Exiles | Accompanied by 3 allies 2805 | -9/Exiles | Identified exit to Mines 2811 | -9/Exiles | Met 8R-AWN 2816 | -9/Exiles | Met EX-HEX 2823 | -9/Exiles | Met EX-BIN 2827 | -9/Exiles | Aligned with FarCom system 2827 | -9/Exiles | Given EX-Vault access code 2833 | -9/Exiles | Opened EX-Vault 2836 | -9/Exiles | Found Longsword +1 2838 | -9/Exiles | Found Latent Energy Streamer 2840 | -9/Exiles | Found Deploy-a-Sentry 2850 | -9/Exiles | Exiles lab attacked by MAIN.C 2877 | -9/Exiles | Discovered exit to Mines (range 10) 2918 | -9/Exiles | Murdered EX-DEC 2919 | -9/Exiles | Attacked by the Exiles 2922 | -9/Exiles | DAS Turret deployed 2922 | -9/Exiles | Found Prototype Processor 2922 | -9/Exiles | Identified Exp. Core Analyzer 2978 | -9/Exiles | Destroyed 8R-AWN 2982 | -9/Exiles | Found Prototype Protection 2982 | -9/Exiles | Identified 8R-AWN's Armor/TH 2984 | -9/Exiles | Found Prototype Protection 3031 | -9/Exiles | Left Exiles lab with Longsword +1 3031 | -9/Exiles | Entered Mines 3107 | -8/Mines | Reached level 9 3206 | -8/Mines | Discovered exit to Materials (range 5) 3207 | -8/Mines | Identified 8R-AWN's Armor/EX 3224 | -8/Mines | Entered Materials 3225 | -8/Materials | Identified exit to Factory 3226 | -8/Materials | Reached level 10 3279 | -8/Materials | Build established: Scavenger-Sprinter 3299 | -8/Materials | Destroyed 7 combat bots 3308 | -8/Materials | Reached level 11 3345 | -8/Materials | Core integrity fell below 50% 3581 | -8/Materials | Identified exit to Garrison 3604 | -8/Materials | Learned 8 Factory zone layouts 3650 | -8/Materials | Upgraded with Utility slot (x2) 3675 | -8/Materials | Learned 4 Factory zone layouts 3737 | -8/Materials | Learned 2 Lower Caves zone layouts 3790 | -8/Materials | Learned location of 2 exits from Lower Caves 3868 | -8/Materials | Learned Storage emergency access door positions 3895 | -8/Materials | Build established: Scavenger-Mutant 3922 | -8/Materials | Reached level 12 4031 | -8/Materials | Learned location of 1 exit from Recycling 4824 | -8/Materials | First assault squad dispatched 4856 | -8/Materials | Reached level 13 5021 | -8/Materials | Garrison activated, responded to threat 5091 | -8/Materials | Destroyed 8 combat bots 5335 | -8/Materials | Garrison activated, responded to threat 5356 | -8/Materials | Sterilization system engaged 5356 | -8/Materials | Non-combat units ordered to evacuate 5373 | -8/Materials | Entered Garrison 5411 | -8/Garrison | Triggered checkpoint 5449 | -8/Garrison | Garrison Relay disabled 5462 | -8/Garrison | Garrison Relay disabled 5496 | -8/Garrison | Triggered checkpoint 5522 | -8/Garrison | Garrison Relay disabled 5522 | -8/Garrison | Reached level 14 5609 | -8/Garrison | Triggered checkpoint 5635 | -8/Garrison | Triggered checkpoint 5659 | -8/Garrison | Triggered checkpoint 5701 | -8/Garrison | Triggered checkpoint 5733 | -8/Garrison | Destroyed 10 combat bots 5781 | -8/Garrison | Discovered new exit (range 10) 5843 | -8/Garrison | Triggered checkpoint 5875 | -8/Garrison | Garrison Relay disabled 5929 | -8/Garrison | Discovered new exit (range 12) 5951 | -8/Garrison | Triggered checkpoint 5997 | -8/Garrison | Garrison Relay disabled 6159 | -8/Garrison | Triggered checkpoint 6167 | -8/Garrison | Garrison Relay disabled 6214 | -8/Garrison | Discovered new exit (range 66) 6214 | -8/Garrison | Discovered new exit (range 35) 6214 | -8/Garrison | Discovered new exit (range 12) 6285 | -8/Garrison | Installed Relay Interface Framework 6317 | -8/Garrison | Phase Generator disabled 6406 | -8/Garrison | Entered Materials 6467 | -8/Materials | Reached level 15 6663 | -8/Materials | Identified exit to Garrison 7060 | -8/Materials | Learned 12 Factory zone layouts 7189 | -8/Materials | Learned Factory interactive machine intel 7206 | -8/Materials | First assault squad dispatched 7272 | -8/Materials | Learned Storage terminal intel 7300 | -8/Materials | Learned Factory emergency access door positions 7444 | -8/Materials | Learned 2 Lower Caves zone layouts 8507 | -8/Materials | Sterilization system engaged 8507 | -8/Materials | Non-combat units ordered to evacuate 8524 | -8/Materials | Destroyed 9 combat bots 8572 | -8/Materials | Entered Garrison 8596 | -8/Garrison | Triggered checkpoint 8639 | -8/Garrison | Garrison Relay disabled 8686 | -8/Garrison | Triggered checkpoint 8723 | -8/Garrison | Discovered exit to Factory (range 13) 8757 | -8/Garrison | Expanded RIF knowledge: Watcher Feeds 8782 | -8/Garrison | Reached level 16 8782 | -8/Garrison | Triggered checkpoint 8795 | -8/Garrison | Garrison Relay disabled 8926 | -8/Garrison | Triggered checkpoint 8929 | -8/Garrison | Triggered checkpoint 9032 | -8/Garrison | Triggered checkpoint 9099 | -8/Garrison | Discovered exit to Factory (range 3) 9124 | -8/Garrison | Garrison Relay disabled 9167 | -8/Garrison | P-60 Hacker assimilated allied 8A-7TF(b) 9285 | -8/Garrison | Discovered exit to Factory (range 8) 9338 | -8/Garrison | Triggered checkpoint 9381 | -8/Garrison | Garrison Relay disabled 9652 | -8/Garrison | Upgraded with Utility slot (x1) 9768 | -8/Garrison | Discovered exit to Factory (range 77) 9768 | -8/Garrison | Discovered exit to Factory (range 84) 9768 | -8/Garrison | Discovered exit to Factory (range 24) 9781 | -8/Garrison | Garrison Relay disabled 9954 | -8/Garrison | Entered Factory 9955 | -7/Factory | Identified exit to Lower Caves 9956 | -7/Factory | Identified exit to Factory 9958 | -7/Factory | Loaded intel: 52 interactive machine locations 10140 | -7/Factory | Discovered exit to Lower Caves (range 15) 10314 | -7/Factory | Reached level 17 10314 | -7/Factory | High security lockdown imminent 10394 | -7/Factory | High security lockdown engaged 10666 | -7/Factory | Destroyed 7 combat bots 10860 | -7/Factory | Destroyed 13 combat bots 10996 | -7/Factory | Destroyed 8 combat bots 10998 | -7/Factory | Core integrity fell below 50% 11003 | -7/Factory | Entered another Factory area 11004 | -6/Factory | Core integrity fell below 50% 11005 | -6/Factory | Reached level 18 11132 | -6/Factory | Core integrity fell below 20% 11151 | -6/Factory | Destroyed by L-41 Fighter with Axe Last Messages --------------- 11129_ System corrupted: Com. Wheel+ rejected. 11129_ Acquired Com. Wheel+. 11130_ Wall collapses. 11131_ Penetrated by Slug. 11132_ Slug penetrates Wall. 11135_ Penetrated by Slug. 11135_ Slug penetrates Wall. 11137_ Upgraded: Core Integrity (+100) 11139_ Penetrated by Slug. 11139_ Slug penetrates Terminal. 11140_ H-66 Slayer destroyed. 11141_ K-01 Serf collects debris. 11142_ Penetrated by Slug. 11142_ H-66 Slayer Gauss Rifle severed. 11144_ H-66 Slayer destroyed. 11145_ K-01 Serf collects debris. 11148_ Dropped Imp. Datajack. 11149_ K-01 Serf destroyed. 11151_ K-01 Serf collects debris. 11151_ Critical hit (Burn: +29). Map ----- +----------------------------------------------------+ | ?????????????????????????????????????????????????? | | ?????????????????????????????????????????????????? | | ?????????????????????????????????????????????????? | | ?????????????????????????????????????????????????? | | ?????????????????????????????????????????????????? | | ?????????????????????????????????????????????????? | | ?????????????????????????????????????????????????? | | ?????????????????????????????????????????????????? | | ?????????????????????????????????????????????????? | | ?????????????????????????????????????????????????? | | ?????????????????????????????????????????????????? | | ?????????????????????????????????????????????????? | | ?????????????????????????????????????????????????? | | ?????????????????????????????????????????????????? | | ?????????????????????????????????????????????????? | | ?????????????????????????????????? ?????????????? | | ??????????????????""????????????? ??????????? | | ?????????????????? ???????????? ????????? | | ???????????????????"""??????????? ?????????? | | ???????????????????? ??????????# ??????????? | | ????????????????????? ?????????# #??????????? | | ???????????###+#######+########## #??????????? | | ??????????? #??????????? | | ?????????? %=!! #??????????? | | ?????????? R*%[/ #??????????? | | ?????????? [k%@[ ; "????????? | | ?????????? gg!gl #??????????? | | ?????????????#########/##; #??????????? | | ???????????????????? # ############ | | ????????????????? ] # | | ????????????? ] # | | ????????????# ? # | | ????????????? "?" ""? # | | ????????????? ??"" ""? + ! | | ????????????? ???"" "?? ?#############" ########## | | ?????????????????? ???? ?????????????#"T#??# ] | | ??????????????????????" ?????????????####??# ! | | ??????????????????????" ???????????????????# " | | ??????????????????????" ???????????????????# ! " | | ?????????????????????? ????????????????????# !% " | | ???????????????????????????????????????????# / | | ???????????????????????????????????????????####### | | | | | | | | | | | | | | | | | +----------------------------------------------------+ Best States ------------- Heat Dissipation 31 Energy Generation 18 Energy Capacity 250 Matter Stores 300 Matter Capacity 300 Sight Range 16 Terrain Scan Density 10 Armor Coverage 1650 Resistance: TH 90 Resistance: EX 90 Evasion (%) 64 Targeting Accuracy 5 Core Analysis 8 Armor Integrity Analysis 40 Offensive Hacking 60 Relay Coupler Types 1 Relay Coupler Value 64 Item Schematics ----------------- None Robot Schematics ------------------ None Fabricated ------------ Nothing Repaired ---------- Nothing Studied --------- Hvy. Hammer | -9/Materials | Hacked Cesium-ion Thruster | -8/Materials | Hacked Com. Wheel | -8/Materials | Hacked Missile Launcher | -8/Materials | Hacked Alien Tech Used ----------------- None Achievements -------------- None Challenges ------------ None RPGLIKE | -11 -10 -10 -9 -9 -9 -8 -8 -8 -8 -8 -7 -6 --------- Run | Yrd Mat Min Mat Min Exi Min Mat Gar Mat Gar Fac Fac Levels Raised 17 | . 1 1 4 1 . 1 4 1 1 1 1 1 XP Earned 29568 | 3000 2350 1950 5826 500 243 1700 6247 2082 1369 702 2409 1190 XP Spent 22910 | . 3950 1100 6550 . 1410 . 4900 2000 . 2900 . 100 Upgrades 26 | . 6 1 5 . 5 . 2 4 . 1 . 2 Propulsion Slot 4 | . 2 1 1 . . . . . . . . . Utility Slot 9 | . 3 . 3 . . . 2 . . 1 . . Core Integrity 4 | . . . . . 2 . . . . . . 2 Heat Dissipation 1 | . . . 1 . . . . . . . . . Mass Support 1 | . . . . . 1 . . . . . . . Inventory Capacity 3 | . 1 . . . 2 . . . . . . . Hack Attack % 4 | . . . . . . . . 4 . . . . Protomatter Created 3299 | . 152 110 290 . . 66 630 339 466 470 776 . Integrity Restored 5166 | . 322 384 725 . . 198 1157 263 694 671 752 . Core 3311 | . 286 355 709 . . 198 584 114 304 362 399 . Parts 1855 | . 36 29 16 . . . 573 149 390 309 353 . Protomatter Decayed 1027 | . 43 15 25 . 31 . 115 111 184 382 121 . Game ------ Seed ResetSixBefriend Manual? 1 Play Time 02:16:21 Cumulative 274.9 hours Start 2026.09.09 @ 17:02:31 End 2026.09.09 @ 20:02:29 Sessions 1 Manual Loads 0 Difficulty Rogue Special Mode Winter2019/RPGLIKE Game No. 183 Rogue 183 Adventurer 0 Explorer 0 Win Type - Total 6 Types 2/0/2/1/0/0/0/1/0/0 Lore% 63 Gallery% 75 Achievement% 59 Wizard Run 0 Options --------- Layout 2 ASCII 0 Keyboard 0 Movement Mouse Keybinds 0 Fullscreen 1 Font 32/Cog Map View 50x44 Zoom Use 0% Tactical HUD 1 Map Filters NONE Filters NONE Steam 1 RUN: 1df53c3b-18a8-4ab5-a103-9669d29f8a2c